bitfinex/quotes_BTCUSD_20250205
["timestamp","ask_amount","ask_price","bid_price","bid_amount"]
[1738730652054,0.0101068,98178.0,98177.0,0.59347442]
[1738730652428,0.0001068,98178.0,98177.0,0.84177442]
[1738730659636,0.0001068,98178.0,98177.0,0.84885442]
[1738730661701,0.0001068,98178.0,98177.0,0.86932006]
[1738730664700,8e-07,98178.0,98177.0,1.14222917]
[1738730664882,6e-07,98188.0,98187.0,0.377515]
[1738730665081,6e-07,98188.0,98187.0,0.55781376]
[1738730665377,6e-07,98188.0,98187.0,0.89543573]
[1738730669560,6e-07,98188.0,98187.0,0.90561146]
[1738730674670,6e-07,98188.0,98187.0,0.90968346]
[1738730680032,6e-07,98188.0,98187.0,0.90990774]
[1738730683561,6e-07,98188.0,98187.0,0.91698774]
[1738730692376,0.00960852,98203.0,98202.0,0.272197]
[1738730692571,0.00960852,98203.0,98202.0,0.42879576]
[1738730692774,0.00960852,98204.0,98203.0,0.295195]
[1738730692976,0.00960852,98204.0,98203.0,0.42879376]
[1738730693502,0.00960852,98204.0,98203.0,0.43660955]
[1738730695043,0.00960852,98204.0,98203.0,0.44368955]
[1738730697455,0.00971542,98205.0,98204.0,0.295194]
[1738730697679,0.00971542,98205.0,98204.0,0.42879276]
[1738730697927,0.00971542,98205.0,98204.0,0.75859276]
[1738730698139,0.00971542,98205.0,98204.0,0.76640855]
[1738730698313,0.0001069,98205.0,98204.0,0.76640855]
[1738730698516,0.00971542,98205.0,98204.0,0.76640855]
[1738730700220,0.0001069,98205.0,98204.0,0.76640855]
[1738730700419,0.00971542,98205.0,98204.0,0.76640855]
[1738730701056,0.00971542,98205.0,98204.0,0.77348855]
[1738730701572,0.0001069,98205.0,98204.0,0.77348855]
[1738730701774,0.00971542,98205.0,98204.0,0.77348855]
[1738730702688,0.0001069,98205.0,98204.0,0.77348855]
[1738730702887,0.00971542,98205.0,98204.0,0.77348855]
[1738730704575,0.00971542,98205.0,98204.0,0.85498855]
[1738730706427,0.0001069,98205.0,98204.0,0.85498855]
[1738730706727,0.00971542,98205.0,98204.0,0.85498855]
[1738730709112,0.00971542,98205.0,98204.0,0.90098855]
[1738730709314,0.0001069,98205.0,98204.0,0.90098855]
[1738730710075,9e-07,98207.0,98206.0,0.372292]
[1738730710276,9e-07,98207.0,98206.0,0.50589076]
[1738730710523,9e-07,98207.0,98206.0,0.51368281]
[1738730711142,9e-07,98207.0,98206.0,0.53973683]
[1738730711451,0.00960852,98215.0,98214.0,0.227882]
[1738730711656,0.00960852,98218.0,98217.0,0.145178]
[1738730711807,0.00960852,98218.0,98217.0,0.24878458]
[1738730712015,0.00960852,98219.0,98218.0,0.272177]
[1738730712216,0.00960852,98220.0,98219.0,0.023]
[1738730712478,0.00960852,98220.0,98219.0,0.31949876]
[1738730712661,0.00960852,98220.0,98219.0,0.32728551]
[1738730712874,0.00971532,98227.0,98226.0,0.145167]
[1738730713074,0.00971532,98227.0,98226.0,0.27876576]
[1738730713237,0.00971532,98227.0,98226.0,0.28655231]
[1738730714245,0.0001068,98227.0,98226.0,0.25533861]
[1738730714452,0.00971532,98227.0,98226.0,0.28651935]
[1738730715256,0.0001068,98227.0,98226.0,0.28651935]
[1738730715521,0.00971532,98227.0,98226.0,0.28651935]
[1738730715804,0.00971532,98227.0,98226.0,0.61631935]
[1738730716143,0.00971532,98227.0,98226.0,0.63526934]
[1738730716342,0.0001068,98227.0,98226.0,0.63526934]
[1738730716561,0.00971532,98227.0,98226.0,0.63526934]
[1738730716970,0.0001068,98227.0,98226.0,0.78526934]
[1738730717572,0.0001068,98227.0,98226.0,0.83246934]
[1738730719022,0.00960852,98241.0,98240.0,0.173]
[1738730719232,0.0048071,98247.0,98246.0,0.272142]
[1738730719443,0.0048071,98247.0,98246.0,0.40529902]
[1738730720555,0.0048071,98247.0,98246.0,0.42424901]
[1738730720769,0.1030301,98250.0,98249.0,0.122138]
[1738730721090,0.0096142,98250.0,98249.0,0.43758661]
[1738730721296,0.0096142,98250.0,98249.0,0.46205831]
[1738730721443,0.0096142,98250.0,98249.0,0.43636549]
[1738730721647,0.0096142,98250.0,98249.0,0.43131306]
[1738730722196,0.0001068,98254.0,98252.0,0.15]
[1738730722197,8e-07,98254.0,98252.0,0.15]
[1738730722397,6e-07,98262.0,98261.0,0.295123]
[1738730722599,6e-07,98262.0,98261.0,0.72730806]
[1738730722955,6e-07,98262.0,98261.0,0.73505102]
[1738730723762,6e-07,98262.0,98261.0,0.75400101]
[1738730724143,6e-07,98262.0,98261.0,1.06470101]
[1738730724355,6e-07,98262.0,98261.0,1.07487462]
[1738730724795,1e-08,98278.0,98277.0,0.15]
[1738730725011,1e-08,98278.0,98277.0,0.35380577]
[1738730725240,1e-08,98278.0,98277.0,0.35258506]
[1738730725457,1e-08,98278.0,98277.0,0.36031359]
[1738730725791,1e-08,98278.0,98277.0,0.28311359]
[1738730726199,1e-08,98278.0,98277.0,0.29019359]
[1738730726817,1e-08,98278.0,98277.0,0.30206358]
[1738730727086,1e-08,98278.0,98277.0,0.30914358]
[1738730727659,1e-08,98278.0,98277.0,0.63894358]
[1738730731892,1e-08,98278.0,98277.0,0.63186358]
[1738730732879,0.01960853,98278.0,98277.0,0.45886358]
[1738730733273,0.10220853,98278.0,98277.0,0.45886358]
[1738730734445,0.14830853,98278.0,98277.0,0.12906358]
[1738730735320,0.14830853,98278.0,98277.0,0.11011359]
[1738730736103,0.14830853,98278.0,98277.0,0.10238506]
[1738730736677,0.14830853,98278.0,98277.0,0.10976801]
[1738730737662,0.14830853,98278.0,98277.0,0.10238506]
[1738730738031,0.14830853,98278.0,98277.0,0.10977244]
[1738730738984,0.14830853,98278.0,98277.0,0.10238506]
[1738730740447,0.14830853,98278.0,98277.0,0.10260913]
[1738730740999,0.14830853,98278.0,98277.0,0.08594246]
[1738730741340,0.14841523,98278.0,98277.0,0.08594246]
[1738730743017,0.14841523,98278.0,98277.0,0.10478264]
[1738730743785,0.14841523,98278.0,98277.0,0.01906425]
[1738730744196,0.14841523,98278.0,98277.0,0.00022407]
[1738730748028,0.20951523,98278.0,98277.0,0.00022407]
[1738730748233,0.14841523,98278.0,98277.0,0.00022407]
[1738730748668,0.13493275,98278.0,98277.0,0.00022407]
[1738730749025,0.13493275,98278.0,98277.0,0.10260913]
[1738730749225,0.13493275,98278.0,98277.0,0.00762748]
[1738730749550,0.13493275,98278.0,98277.0,0.00022407]
[1738730752571,0.25703475,98278.0,98277.0,0.00022407]
[1738730760395,0.3163226,98278.0,98277.0,0.00022407]
[1738730760598,0.25703475,98278.0,98277.0,0.00022407]
[1738730762118,0.25803475,98278.0,98277.0,0.00022407]
[1738730763520,0.48913475,98278.0,98277.0,0.00022407]
[1738730764219,0.48813475,98278.0,98277.0,0.00022407]
[1738730764630,0.48913475,98278.0,98277.0,0.00022407]
[1738730764831,0.48913475,98278.0,98277.0,7e-08]
[1738730764832,1.00241766,98278.0,98277.0,7e-08]
[1738730765055,1.02541766,98278.0,98277.0,7e-08]
[1738730765288,1.03741766,98278.0,98277.0,0.00100007]
[1738730765496,0.48053152,98261.0,98260.0,0.08170811]
[1738730765697,0.47053152,98261.0,98260.0,0.08170811]
[1738730766030,0.48053152,98261.0,98260.0,0.08170811]
[1738730766385,0.13174652,98249.0,98232.0,0.122159]
[1738730766571,0.13174652,98249.0,98230.0,0.20386911]
[1738730766767,0.00960852,98231.0,98230.0,0.08170811]
[1738730767028,0.00960852,98231.0,98230.0,0.30625517]
[1738730767250,0.00960852,98231.0,98230.0,0.31367827]
[1738730767574,0.00960852,98231.0,98230.0,0.23197016]
[1738730768754,0.00960852,98231.0,98230.0,0.23297016]
[1738730769810,0.11132645,98240.0,98239.0,0.122151]
[1738730769992,0.3447909,98250.0,98242.0,0.122146]
[1738730770208,0.2226529,98250.0,98243.0,0.22453006]
[1738730770407,0.12214,98248.0,98243.0,0.10982241]
[1738730770768,0.00960852,98244.0,98243.0,0.23196841]
[1738730770980,0.11132645,98250.0,98243.0,0.23196841]
[1738730770981,0.12093497,98250.0,98249.0,0.122138]
[1738730771321,0.00960852,98250.0,98249.0,0.23195745]
[1738730771718,0.23345245,98259.0,98249.0,0.10981945]
[1738730771954,0.11132645,98259.0,98251.0,0.162848]
[1738730772164,0.11132645,98259.0,98252.0,0.10238506]
[1738730772368,0.00960852,98253.0,98252.0,0.10982241]
[1738730772567,0.00960852,98253.0,98252.0,0.23195641]
[1738730774792,0.00960852,98253.0,98252.0,0.10982241]
[1738730775001,0.00960852,98253.0,98252.0,0.23195641]
[1738730775193,0.00960852,98253.0,98252.0,0.10982241]
[1738730775558,0.13174152,98253.0,98252.0,0.10982241]
[1738730776192,0.13174152,98253.0,98252.0,0.10238506]
[1738730776586,0.162839,98257.0,98237.0,0.162869]
[1738730776587,0.00960852,98238.0,98237.0,0.162869]
[1738730776818,0.00960852,98238.0,98237.0,0.26525406]
[1738730777693,0.00960852,98238.0,98237.0,0.22453806]
[1738730779205,0.11132645,98247.0,98237.0,0.10238506]
[1738730779405,0.00960852,98238.0,98235.0,0.24458111]
[1738730779586,0.00960852,98238.0,98237.0,0.122153]
[1738730781354,0.00960852,98238.0,98237.0,0.22453806]
[1738730782077,0.00960852,98238.0,98237.0,0.10238506]
[1738730783239,0.13176052,98238.0,98237.0,0.10238506]
[1738730785521,0.00960852,98221.0,98215.0,0.240107]
[1738730785725,0.11511485,98221.0,98220.0,0.10238506]
[1738730785916,0.11511485,98221.0,98220.0,0.10982576]
[1738730787342,0.122169,98224.0,98220.0,0.10982576]
[1738730787602,0.122167,98226.0,98221.0,0.10238506]
[1738730787838,0.11132645,98233.0,98221.0,0.10238506]
[1738730788024,0.11132645,98233.0,98222.0,0.00745046]
[1738730788227,0.23348445,98233.0,98225.0,0.122167]
[1738730788430,0.23348445,98233.0,98226.0,0.10238506]
[1738730788669,0.162879,98232.0,98226.0,0.109837]
[1738730788819,0.122166,98227.0,98226.0,0.109837]
[1738730789188,0.122166,98227.0,98226.0,0.10238506]
[1738730789589,0.122166,98227.0,98226.0,0.00744898]
[1738730790017,0.12217,98224.0,98210.0,0.492714]
[1738730790375,0.2226529,98220.0,98216.0,0.122178]
[1738730790514,0.122172,98222.0,98217.0,0.10238506]
[1738730790715,0.12217,98224.0,98217.0,0.23201896]
[1738730791257,0.12217,98224.0,98217.0,0.10984096]
[1738730791455,0.122171,98223.0,98217.0,0.10984096]
[1738730791976,0.122171,98223.0,98217.0,0.23201896]
[1738730792323,0.122171,98223.0,98217.0,0.10984096]
[1738730792465,0.122171,98223.0,98217.0,0.23201896]
[1738730793829,0.3448199,98226.0,98219.0,0.122174]
[1738730794043,0.2226529,98226.0,98220.0,0.10238506]
[1738730794182,0.122169,98224.0,98220.0,0.10984401]
[1738730794379,0.3448209,98226.0,98220.0,0.10984401]
[1738730795187,0.11132645,98226.0,98220.0,0.10984401]
[1738730795432,0.11132645,98226.0,98225.0,0.122168]
[1738730795633,0.00997739,98230.0,98225.0,0.23200954]
[1738730795837,0.162876,98234.0,98225.0,0.23200954]
[1738730795838,0.122159,98232.0,98226.0,0.22455206]
[1738730796038,0.162876,98234.0,98227.0,0.00745846]
[1738730796244,0.122162,98230.0,98228.0,0.10238506]
[1738730796444,0.12216,98232.0,98229.0,0.00745648]
[1738730796645,0.12216,98232.0,98229.0,0.10238506]
[1738730796884,0.12216,98232.0,98230.0,0.00745698]
[1738730797510,0.122161,98231.0,98230.0,0.00745698]
[1738730798049,0.122162,98230.0,98229.0,0.10238506]
[1738730798253,0.16288,98232.0,98229.0,0.10238506]
[1738730798457,0.0099947,98235.0,98229.0,0.10238506]
[1738730798821,0.049,98239.0,98230.0,0.10238506]
[1738730798997,0.162869,98238.0,98230.0,0.10238506]
[1738730799349,0.122159,98232.0,98231.0,0.00745994]
[1738730799481,0.122159,98232.0,98231.0,0.109845]
[1738730799696,0.162876,98235.0,98231.0,0.109845]
[1738730799888,0.122158,98233.0,98232.0,0.10238506]
[1738730800234,0.122158,98233.0,98232.0,0.10984056]
[1738730800636,0.122158,98233.0,98232.0,0.0074555]
[1738730801180,0.122169,98224.0,98219.0,0.08170811]
[1738730801362,0.11132645,98229.0,98220.0,0.10238506]
[1738730801565,0.12217,98224.0,98220.0,0.10984204]
[1738730801930,0.122172,98223.0,98220.0,0.10984204]
[1738730802433,0.12217,98224.0,98220.0,0.10984204]
[1738730803663,0.122167,98226.0,98220.0,0.10984204]
[1738730804197,0.122169,98225.0,98220.0,0.10984204]
[1738730804764,0.12217,98224.0,98220.0,0.10984204]
[1738730806165,0.162889,98226.0,98220.0,0.10984204]
[1738730806342,0.122169,98224.0,98220.0,0.10984204]
[1738730806698,0.122169,98224.0,98220.0,0.10238506]
[1738730806868,0.162889,98226.0,98221.0,0.00745594]
[1738730807069,0.122171,98223.0,98222.0,0.10238506]
[1738730807512,0.122171,98223.0,98222.0,0.10984001]
[1738730808088,0.183271,98223.0,98222.0,0.10984001]
[1738730808275,0.122171,98223.0,98222.0,0.10984001]
[1738730808678,0.122171,98223.0,98222.0,0.10238506]
[1738730809425,0.12153396,98229.0,98217.0,0.00022428]
[1738730809426,0.122177,98218.0,98217.0,0.00022428]
[1738730809718,0.170377,98218.0,98217.0,0.00022428]
[1738730811814,0.308077,98218.0,98217.0,0.00022428]
[1738730814639,0.31832614,98218.0,98217.0,0.00022428]
[1738730815137,0.40103823,98218.0,98217.0,0.00022428]
[1738730817620,0.55103823,98218.0,98217.0,0.00022428]
[1738730818432,0.56103823,98218.0,98217.0,0.00022428]
[1738730818610,0.57103823,98218.0,98217.0,0.00022428]
[1738730818816,0.57503823,98218.0,98217.0,0.00022428]
[1738730820458,0.57703823,98218.0,98217.0,0.00022428]
[1738730821060,0.57303823,98218.0,98217.0,0.00022428]
[1738730821285,0.57803823,98218.0,98217.0,0.00022428]
[1738730823460,0.68513823,98218.0,98217.0,0.00022428]
[1738730823660,0.57803823,98218.0,98217.0,0.00022428]
[1738730826461,0.49532614,98218.0,98217.0,0.00022428]
[1738730827588,0.35052614,98218.0,98217.0,0.00022428]
[1738730827794,0.20052614,98218.0,98217.0,0.00022428]
[1738730827998,0.13942614,98218.0,98217.0,0.00022428]
[1738730828199,0.13942614,98218.0,98217.0,0.17940934]
[1738730828420,0.13742614,98218.0,98217.0,0.17940934]
[1738730828696,0.13242614,98218.0,98217.0,0.1097508]
[1738730828902,0.13442614,98218.0,98217.0,0.10260934]
[1738730829210,0.13242614,98218.0,98217.0,0.10260934]
[1738730829601,0.13342614,98218.0,98217.0,0.10260934]
[1738730832036,0.13342614,98218.0,98217.0,0.10975052]
[1738730836556,0.123177,98218.0,98217.0,0.10975052]
[1738730840300,0.001,98218.0,98217.0,0.10975052]
[1738730840551,0.001,98218.0,98217.0,0.19055052]
[1738730840674,0.123177,98218.0,98217.0,0.19055052]
[1738730841409,0.123177,98218.0,98217.0,0.18340934]
[1738730841871,0.122177,98218.0,98217.0,0.19054178]
[1738730846059,0.122177,98218.0,98217.0,0.10974178]
[1738730846262,0.122177,98218.0,98217.0,0.10260934]
[1738730847373,0.0001068,98221.0,98217.0,0.18190934]
[1738730847573,0.0001068,98221.0,98220.0,0.167574]
[1738730847852,0.0001068,98221.0,98220.0,0.14778506]
[1738730848004,0.0001068,98221.0,98220.0,0.2770915]
[1738730848387,0.0001068,98221.0,98220.0,0.1549175]
[1738730848942,0.0001068,98221.0,98220.0,0.2770915]
[1738730849105,0.0001068,98221.0,98220.0,0.3563915]
[1738730850262,0.0001068,98221.0,98220.0,0.2342175]
[1738730852019,0.0001068,98221.0,98220.0,0.3563915]
[1738730860961,0.0001068,98221.0,98220.0,0.35661578]
[1738730872562,0.0001068,98221.0,98220.0,0.31121578]
[1738730886261,0.07311743,98230.0,98221.0,0.162896]
[1738730886513,0.12217,98223.0,98222.0,0.10238506]
[1738730886739,0.12217,98223.0,98222.0,0.10950625]
[1738730890254,0.14623486,98230.0,98222.0,0.10950625]
[1738730890453,0.122167,98226.0,98222.0,0.10950625]
[1738730890657,0.14623486,98230.0,98222.0,0.10950625]
[1738730890974,0.122169,98225.0,98222.0,0.10238506]
[1738730891336,0.122166,98227.0,98223.0,0.00712148]
[1738730891581,0.122166,98227.0,98224.0,0.10238506]
[1738730891935,0.15650107,98230.0,98224.0,0.10238506]
[1738730892155,0.122168,98225.0,98224.0,0.10238506]
[1738730893214,0.122168,98225.0,98220.0,0.00022428]
[1738730893215,0.122173,98221.0,98220.0,0.00022428]
[1738730893412,0.122173,98221.0,98220.0,0.10260934]
[1738730894238,0.122173,98221.0,98220.0,0.00022428]
[1738730897561,0.1222798,98221.0,98220.0,0.00022428]
[1738730898316,0.1833798,98221.0,98220.0,0.00022428]
[1738730899460,0.1222798,98221.0,98220.0,0.00022428]
[1738730900769,0.39730638,98221.0,98220.0,0.00022428]
[1738730900966,0.47560638,98221.0,98220.0,0.00022428]
[1738730901163,0.48560638,98221.0,98220.0,0.00022428]
[1738730901406,0.53470638,98221.0,98220.0,0.00022428]
[1738730902538,0.53970638,98221.0,98220.0,0.00122428]
[1738730902849,0.53670638,98221.0,98220.0,0.00022428]
[1738730903058,0.4727798,98221.0,98220.0,0.00022428]
[1738730904379,0.4767798,98221.0,98220.0,0.00122428]
[1738730904603,0.4787798,98221.0,98220.0,0.00122428]
[1738730908487,0.4787798,98221.0,98217.0,0.00022428]
[1738730908488,0.353277,98218.0,98217.0,0.00018429]
[1738730908716,0.68917172,98218.0,98217.0,0.00018429]
[1738730910905,0.69517172,98218.0,98217.0,0.00118429]
[1738730911108,0.69717172,98218.0,98217.0,0.00118429]
[1738730911512,0.69517172,98218.0,98217.0,0.00118429]
[1738730911950,1.02657172,98218.0,98217.0,0.00118429]
[1738730914304,1.03644691,98218.0,98217.0,0.00118429]
[1738730919120,0.92934691,98218.0,98217.0,0.00118429]
[1738730919324,0.84044691,98218.0,98217.0,0.00118429]
[1738730919468,0.73795219,98218.0,98217.0,0.00118429]
[1738730920677,0.74795219,98218.0,98217.0,0.00118429]
[1738730921745,0.74805899,98218.0,98217.0,0.00118429]
[1738730922325,0.73805899,98218.0,98217.0,0.00118429]
[1738730922533,0.84055371,98218.0,98217.0,0.00118429]
[1738730922689,0.85055371,98218.0,98217.0,0.00118429]
[1738730924631,0.84055371,98218.0,98217.0,0.00118429]
[1738730925019,0.85055371,98218.0,98217.0,0.00118429]
[1738730925595,0.84055371,98218.0,98217.0,0.00118429]
[1738730927909,0.72805899,98218.0,98217.0,0.00118429]
[1738730928240,0.73805899,98218.0,98217.0,0.00118429]
[1738730929161,0.74805899,98218.0,98217.0,0.00118429]
[1738730929601,0.73805899,98218.0,98217.0,0.00118429]
[1738730929814,0.74805899,98218.0,98217.0,0.00118429]
[1738730930362,0.84055371,98218.0,98217.0,0.00118429]
[1738730931206,0.85055371,98218.0,98217.0,0.00118429]
[1738730931608,0.93225371,98218.0,98217.0,0.00118429]
[1738730937467,1.16473877,98218.0,98217.0,0.00118429]
[1738730937867,0.93214405,98218.0,98217.0,0.00118429]
[1738730938069,0.74805899,98218.0,98217.0,0.00118429]
[1738730938970,0.85515899,98218.0,98217.0,0.00118429]
[1738730939422,0.74805899,98218.0,98217.0,0.00118429]
[1738730941171,0.85044405,98218.0,98217.0,0.00118429]
[1738730941369,0.95293877,98218.0,98217.0,0.00118429]
[1738730942985,1.46200877,98218.0,98217.0,0.00118429]
[1738730945696,1.48500877,98218.0,98217.0,2.9e-07]
[1738730949066,1.59210877,98218.0,98217.0,2.9e-07]
[1738730950511,1.35962371,98218.0,98217.0,2.9e-07]
[1738730957181,1.35962371,98218.0,98217.0,0.00022457]
[1738730957724,0.183314,98188.0,98187.0,0.07752428]
[1738730958024,0.183314,98188.0,98187.0,0.00022428]
[1738730958025,0.333314,98188.0,98187.0,0.00022428]
[1738730959041,0.338314,98188.0,98187.0,0.00122428]
[1738730959445,0.338314,98188.0,98187.0,0.00213311]
[1738730960053,0.338314,98188.0,98187.0,0.00113311]
[1738730960254,0.4230292,98188.0,98187.0,0.00113311]
[1738730962431,0.7524292,98188.0,98187.0,0.00113311]
[1738730963617,0.76248522,98188.0,98187.0,0.00113311]
[1738730965845,0.67877002,98188.0,98187.0,0.00113311]
[1738730967411,0.46767002,98188.0,98187.0,0.07943311]
[1738730967615,0.46767002,98188.0,98187.0,0.12473311]
[1738730968453,0.13827002,98188.0,98187.0,0.12473311]
[1738730968674,0.20098082,98188.0,98187.0,0.13187953]
[1738730969176,0.20098082,98188.0,98187.0,0.08657953]
[1738730969610,0.20098082,98188.0,98187.0,0.07943311]
[1738730970739,0.20098082,98188.0,98187.0,0.00113311]
[1738730978182,0.26208082,98188.0,98187.0,0.00113311]
[1738730981969,0.26218772,98188.0,98187.0,0.00113311]
[1738730986222,0.59158772,98188.0,98187.0,0.00113311]
[1738730993443,0.52887692,98188.0,98187.0,0.00113311]
[1738730993843,0.46777692,98188.0,98187.0,0.00113311]
[1738730994049,0.46777692,98188.0,98187.0,0.08083311]
[1738730997606,0.46777692,98188.0,98187.0,0.18321817]
[1738730998017,0.13737692,98188.0,98187.0,0.19036233]
[1738730998590,0.13237692,98188.0,98187.0,0.18936233]
[1738730998991,0.13337692,98188.0,98187.0,0.18936233]
[1738730999593,0.13437692,98188.0,98187.0,0.18936233]
[1738731000625,0.0021069,98188.0,98187.0,0.18936233]
[1738731000943,0.0021069,98188.0,98187.0,0.23456233]
[1738731001147,0.0021069,98188.0,98187.0,0.35677733]
[1738731001887,0.1223209,98188.0,98187.0,0.23456233]
[1738731002099,0.1223209,98188.0,98187.0,0.23656233]
[1738731002396,0.1223209,98188.0,98187.0,0.23556233]
[1738731002577,0.1223209,98188.0,98187.0,0.23456233]
[1738731002771,0.1223209,98188.0,98187.0,0.23556233]
[1738731002992,0.1223209,98188.0,98187.0,0.23656233]
[1738731003191,0.1223209,98188.0,98187.0,0.23556233]
[1738731003513,0.1223209,98188.0,98187.0,0.23656233]
[1738731003935,0.0001069,98188.0,98187.0,0.23656233]
[1738731004164,0.0001069,98188.0,98187.0,0.35777733]
[1738731004699,0.0001069,98188.0,98187.0,0.35877733]
[1738731006882,0.0001069,98188.0,98187.0,0.35777733]
[1738731007213,0.0001069,98188.0,98187.0,0.35677733]
[1738731007474,0.0001069,98188.0,98187.0,0.35777733]
[1738731007989,0.0001069,98188.0,98187.0,0.35677733]
[1738731008212,0.0001069,98188.0,98187.0,0.35777733]
[1738731008406,0.0001069,98188.0,98187.0,0.35877733]
[1738731008625,0.0001069,98188.0,98187.0,0.35777733]
[1738731008839,0.0001069,98188.0,98187.0,0.35877733]
[1738731010528,0.0001069,98188.0,98187.0,0.38177733]
[1738731012115,0.0001069,98188.0,98187.0,0.39199434]
[1738731012434,0.0001069,98188.0,98187.0,0.23656233]
[1738731012586,0.0001069,98188.0,98187.0,0.19136233]
[1738731012992,0.1223209,98188.0,98187.0,0.19136233]
[1738731013383,0.0001069,98188.0,98187.0,0.19136233]
[1738731015594,0.0001069,98188.0,98187.0,0.19036233]
[1738731015928,0.0001069,98188.0,98187.0,0.31357733]
[1738731016383,0.0001069,98188.0,98187.0,0.31257733]
[1738731016580,0.0001069,98188.0,98187.0,0.31357733]
[1738731016786,0.0001069,98188.0,98187.0,0.31257733]
[1738731017767,0.1223209,98188.0,98187.0,0.19036233]
[1738731017979,0.1223209,98188.0,98187.0,0.11066233]
[1738731018661,0.1223209,98188.0,98187.0,0.11166233]
[1738731021692,0.1223209,98188.0,98187.0,0.00927727]
[1738731021891,0.1223209,98188.0,98187.0,0.00213311]
[1738731022931,0.1223209,98188.0,98187.0,0.00113311]
[1738731023838,0.1223209,98188.0,98187.0,0.00213311]
[1738731024202,0.1223209,98188.0,98187.0,0.00113311]
[1738731025649,0.1223209,98188.0,98187.0,0.00213311]
[1738731025860,0.20108843,98188.0,98187.0,0.00213311]
[1738731026642,0.35108843,98188.0,98187.0,0.00213311]
[1738731027494,0.35108843,98188.0,98187.0,0.00013311]
[1738731027495,0.76328843,98188.0,98187.0,0.00013311]
[1738731028561,0.77328843,98188.0,98187.0,0.00013311]
[1738731028933,0.77328843,98188.0,98187.0,0.00213311]
[1738731029180,0.77328843,98188.0,98187.0,0.00113311]
[1738731029310,0.77328843,98188.0,98187.0,0.00013311]
[1738731029510,0.77628843,98188.0,98187.0,0.00013311]
[1738731029861,0.77728843,98188.0,98187.0,0.00013311]
[1738731030223,0.6057209,98188.0,98187.0,0.00013311]
[1738731035403,1.2878209,98188.0,98187.0,0.00013311]
[1738731035675,1.2978209,98188.0,98187.0,1.1e-07]
[1738731036502,1.2938209,98188.0,98187.0,1.1e-07]
[1738731036759,1.2978209,98188.0,98187.0,1.1e-07]
[1738731036962,1.52270068,98188.0,98187.0,1.1e-07]
[1738731037467,1.53170068,98188.0,98187.0,1.1e-07]
[1738731037875,1.53170068,98188.0,98178.0,0.00022407]
[1738731037876,0.438225,98179.0,98178.0,1.8e-07]
[1738731038079,0.60171006,98179.0,98178.0,1.8e-07]
[1738731038285,0.70420478,98179.0,98178.0,1.8e-07]
[1738731039247,0.183339,98168.0,98159.0,0.08170811]
[1738731039492,0.662739,98168.0,98159.0,0.08170811]
[1738731040478,0.737839,98168.0,98159.0,0.08170811]
[1738731041105,0.741839,98168.0,98159.0,0.08170811]
[1738731041320,0.84433372,98168.0,98159.0,0.08170811]
[1738731041854,0.84533372,98168.0,98159.0,0.08170811]
[1738731042059,1.38783372,98168.0,98159.0,0.08170811]
[1738731042229,1.45663372,98168.0,98154.0,0.00022428]
[1738731042769,1.46664645,98168.0,98154.0,0.00022428]
[1738731043083,1.46564645,98168.0,98154.0,0.00022428]
[1738731043329,1.46164645,98168.0,98154.0,0.00022428]
[1738731043713,1.46864645,98168.0,98154.0,0.00022428]
[1738731043918,1.46164645,98168.0,98154.0,0.00022428]
[1738731044125,1.46264645,98168.0,98154.0,0.00022428]
[1738731044325,1.47064645,98168.0,98154.0,0.00022428]
[1738731044549,1.46264645,98168.0,98154.0,0.00022428]
[1738731045370,1.46164645,98168.0,98154.0,0.00022428]
[1738731045667,1.46464645,98168.0,98154.0,0.00022428]
[1738731046170,1.46164645,98168.0,98154.0,0.00022428]
[1738731046587,1.47264645,98168.0,98154.0,0.00022428]
[1738731046792,1.46464645,98168.0,98154.0,0.00022428]
[1738731046937,1.46164645,98168.0,98154.0,0.00022428]
[1738731047339,1.46364645,98168.0,98154.0,0.00022428]
[1738731047588,1.47264645,98168.0,98154.0,0.00022428]
[1738731048395,1.59803151,98168.0,98167.0,2.8e-07]
[1738731048535,1.59603151,98168.0,98167.0,2.8e-07]
[1738731049284,1.59903151,98168.0,98167.0,2.8e-07]
[1738731049485,1.58703151,98168.0,98167.0,2.8e-07]
[1738731049847,1.59603151,98168.0,98167.0,2.8e-07]
[1738731050209,1.47464645,98168.0,98167.0,2.8e-07]
[1738731052375,1.46464645,98168.0,98167.0,2.8e-07]
[1738731052658,1.38954645,98168.0,98167.0,2.8e-07]
[1738731052824,1.01715173,98168.0,98167.0,2.8e-07]
[1738731053030,0.464639,98168.0,98167.0,0.07640028]
[1738731053231,0.3424,98168.0,98167.0,0.17878534]
[1738731053447,0.464639,98168.0,98167.0,0.1860649]
[1738731053823,0.3424,98168.0,98167.0,0.1860649]
[1738731054059,0.3334,98168.0,98167.0,0.17878534]
[1738731054253,0.3334,98168.0,98167.0,0.22548534]
[1738731054411,0.3334,98168.0,98167.0,0.23376008]
[1738731054617,0.3334,98168.0,98167.0,0.35600008]
[1738731054809,0.3294,98168.0,98167.0,0.35600008]
[1738731055013,0.3294,98168.0,98167.0,0.35700008]
[1738731055257,0.3294,98168.0,98167.0,0.23376008]
[1738731055432,0.3294,98168.0,98167.0,0.23276008]
[1738731055831,0.3294,98168.0,98167.0,0.23376008]
[1738731056540,0.3294,98168.0,98167.0,0.23476008]
[1738731057083,0.451639,98168.0,98167.0,0.18706008]
[1738731057404,0.122239,98168.0,98167.0,0.18706008]
[1738731057662,0.122239,98168.0,98167.0,0.18078534]
[1738731058105,0.162974,98175.0,98167.0,0.18605125]
[1738731058283,0.3294,98176.0,98168.0,0.10238506]
[1738731058455,0.122233,98174.0,98168.0,0.10238506]
[1738731058659,0.122233,98173.0,98169.0,0.00726898]
[1738731058982,0.122233,98173.0,98170.0,0.10238506]
[1738731059181,0.122234,98172.0,98170.0,0.10965199]
[1738731059327,0.162974,98175.0,98170.0,0.10965199]
[1738731059523,0.3294,98176.0,98170.0,0.10965199]
[1738731059782,0.12223,98175.0,98170.0,0.10965199]
[1738731060348,0.451629,98176.0,98170.0,0.23188799]
[1738731060589,0.3294,98176.0,98174.0,0.12223]
[1738731060768,0.0001069,98178.0,98177.0,0.246528]
[1738731060963,0.0001069,98178.0,98177.0,0.34891306]
[1738731061167,0.0001069,98178.0,98177.0,0.3561778]
[1738731062169,0.0001069,98178.0,98177.0,0.3571778]
[1738731063800,0.0001069,98178.0,98177.0,0.3581778]
[1738731066433,0.1223329,98178.0,98177.0,0.1897498]
[1738731067197,0.1223329,98178.0,98177.0,0.1116498]
[1738731067901,0.16715909,98178.0,98177.0,0.00926474]
[1738731068131,0.16715909,98178.0,98177.0,0.00826474]
[1738731068282,0.16715909,98178.0,98167.0,2.8e-07]
[1738731068283,0.122239,98168.0,98167.0,2.8e-07]
[1738731069978,0.451639,98168.0,98167.0,2.8e-07]
[1738731070806,0.453639,98168.0,98167.0,2.8e-07]
[1738731071677,0.451639,98168.0,98167.0,2.8e-07]
[1738731076934,0.452639,98168.0,98167.0,2.8e-07]